[Event "O2C Doeberl Cup 2019"]
[Site "Canberra"]
[Date "2019.04.18"]
[Round "2.4"]
[White "Kunte, Abhijit"]
[Black "Richards, Heather S"]
[Result "1/2-1/2"]
[ECO "A49"]
[WhiteElo "2485"]
[BlackElo "2240"]
[Annotator "ChessBase"]
[PlyCount "67"]
[EventDate "2019.04.17"]
[EventType "swiss"]
[EventCountry "AUS"]
[SourceTitle "playchess.com"]
[Source "ChessBase"]
[SourceQuality "1"]
[TimeControl "5400+30"]

1. Nf3 {[%emt 0:00:00]} d6 {[%emt 0:08:49]} 2. d4 {[%emt 0:02:01]} Nf6 {[%emt 0:00:23]} 3. g3 {[%emt 0:02:39]} g6 {[%emt 0:00:27]} 4. Bg2 {[%emt 0:00:09]} Bg7 {[%emt 0:00:06]} 5. O-O {[%emt 0:00:04]} c6 {[%emt 0:00:14]} 6. b3 {[%emt 0:01:39]} O-O {[%emt 0:00:08]} 7. Bb2 {[%emt 0:00:06]} Qc7 {[%emt 0:01:10]} 8. Nbd2 {[%emt 0:02:33]} Nbd7 {[%emt 0:01:09]} 9. a4 {[%emt 0:02:55]} b6 {[%emt 0:00:41]} 10. e4 {[%emt 0:00:56]} e5 {[%emt 0:00:25]} 11. c3 {[%emt 0:03:57]} Bb7 {[%emt 0:05:54]} 12. Re1 {[%emt 0:00:43]} a6 {[%emt 0:01:45]} 13. Qc2 {[%emt 0:02:37]} b5 {[%emt 0:01:41]} 14. dxe5 {[%emt 0:17:26]} dxe5 {[%emt 0:02:24]} 15. c4 {[%emt 0:00:22]} bxa4 {[%emt 0:01:15]} 16. Rxa4 {[%emt 0:04:04]} Rfe8 {[%emt 0:00:27]} 17. c5 {[%emt 0:07:47]} Bf8 {[%emt 0:01:49]} 18. Ba3 {[%emt 0:00:09]} a5 {[%emt 0:02:05]} 19. Qc3 {[%emt 0:05:31]} Ra7 {[%emt 0:10:06]} 20. Ra1 {[%emt 0:03:37]} Rea8 {[%emt 0:03:35]} 21. Ne1 {[%emt 0:00:20]} Rd8 {[%emt 0:07:24]} 22. Nd3 {[%emt 0:06:55]} Ba6 {[%emt 0:01:26]} 23. Qxa5 {[%emt 0:00:59]} Qxa5 {[%emt 0:02:08]} 24. Rxa5 {[%emt 0:00:13]} Nb8 {[%emt 0:02:33]} 25. Bf1 {[%emt 0:01:15]} Re7 {[%emt 0:04:56]} 26. Nb4 {[%emt 0:11:10]} Bxf1 {[%emt 0:00:14]} 27. Nxf1 {[%emt 0:00:08]} Nxe4 {[%emt 0:00:09]} 28. Re1 {[%emt 0:01:36]} f5 {[%emt 0:02:44]} 29. Nc2 {[%emt 0:00:30]} Bh6 {[%emt 0:00:30]} 30. b4 {[%emt 0:00:30]} Kf7 {[%emt 0:00:30]} 31. Bc1 {[%emt 0:00:30]} Bxc1 {[%emt 0:00:30]} 32. Rxc1 {[%emt 0:00:30]} Nc3 {[%emt 0:00:30]} 33. Kg2 {[%emt 0:00:30]} f4 {[%emt 0:00:30]} 34. Ne1 {[%emt 0:00:30]} 1/2-1/2

[Event "O2C Doeberl Cup 2019"]
[Site "Canberra"]
[Date "2019.04.18"]
[Round "2.5"]
[White "Puccini, Jack"]
[Black "Ikeda, Junta"]
[Result "1-0"]
[ECO "B99"]
[WhiteElo "2261"]
[BlackElo "2441"]
[Annotator "NA"]
[PlyCount "95"]
[EventDate "2019.04.17"]
[EventType "swiss"]
[EventCountry "AUS"]
[SourceTitle "playchess.com"]
[Source "ChessBase"]
[SourceQuality "1"]
[TimeControl "5400+30"]

1. e4 {[%emt 1:10:37]} c5 {[%emt 0:00:04]} 2. Nf3 {[%emt 0:00:16]} d6 {[%emt 0:00:13]} 3. d4 {[%emt 0:00:37]} cxd4 {[%emt 0:00:05]} 4. Nxd4 {[%emt 0:00:06]} Nf6 {[%emt 0:00:02]} 5. Nc3 {[%emt 0:00:06]} a6 {[%emt 0:00:27]} 6. Bg5 {[%emt 0:00:30]} Nbd7 {[%emt 0:00:47]} 7. f4 {[%emt 0:01:47]} e6 {[%emt 0:04:50]} 8. Qf3 {[%emt 0:00:00]} Be7 {[%emt 0:02:14]} 9. O-O-O {[%emt 0:00:51]} Qc7 {[%emt 0:01:49]} 10. f5 {[%emt 0:01:01]} e5 {[%emt 0:01:41]} 11. Nde2 {[%emt 0:00:00]} b5 {[%emt 0:04:23]} 12. Bxf6 {[%emt 0:00:00]} Nxf6 {[%emt 0:01:23]} 13. Nd5 {[%emt 0:00:00]} Nxd5 {[%emt 0:04:36]} 14. exd5 {[%emt 0:00:06]} Bd7 {[%emt 0:20:27]} 15. Ng3 {[%emt 0:00:00]} O-O {[%emt 0:06:07]} 16. h4 {[%emt 0:00:00]} b4 {[%emt 0:06:13]} 17. Bd3 {[%emt 0:00:00]} a5 {[%emt 0:02:53]} 18. Kb1 {[%emt 0:00:00]} Qb6 {[%emt 0:13:11]} 19. h5 {[%emt 0:00:00]} h6 {[%emt 0:14:45]} 20. f6 {[%emt 0:00:00]} Bxf6 {[%emt 0:00:29]} 21. Qe4 {[%emt 0:00:00]} Rfb8 {[%emt 0:01:29]} 22. Qh7+ {[%emt 0:00:00]} Kf8 {[%emt 0:00:03]} 23. Ne4 {[%emt 0:00:00]} Ke7 {[%emt 0:02:54]} 24. Nxf6 {[%emt 0:00:00]} gxf6 {[%emt 0:00:06]} 25. Bg6 {[%emt 0:01:13]} Rf8 {[%emt 0:00:51]} 26. Rhf1 {[%emt 0:01:34]} f5 {[%emt 0:00:46]} 27. Qxh6 {[%emt 0:13:42]} fxg6 {[%emt 0:09:16]} 28. hxg6 {[%emt 0:00:19]} Qd8 {[%emt 0:00:48]} 29. Qh7+ {[%emt 0:02:18]} Kf6 {[%emt 0:00:49]} 30. Rh1 {[%emt 0:01:25]} Rh8 {[%emt 0:00:45]} 31. Qf7+ {[%emt 0:01:24]} Kg5 {[%emt 0:00:04]} 32. g7 {[%emt 0:01:31]} Rxh1 {[%emt 0:00:43]} 33. Rxh1 {[%emt 0:00:05]} Kf4 {[%emt 0:00:41]} 34. Qh5 {[%emt 0:02:09]} e4 {[%emt 0:00:30]} 35. Qh2+ {[%emt 0:03:09]} Ke3 {[%emt 0:00:26]} 36. Qxd6 {[%emt 0:01:15]} Qg5 {[%emt 0:00:35]} 37. Qxd7 {[%emt 0:01:21]} Qxg2 {[%emt 0:00:04]} 38. Rd1 {[%emt 0:00:53]} Ke2 {[%emt 0:00:54]} 39. Rc1 {[%emt 0:00:27]} Rg8 {[%emt 0:00:21]} 40. Qxf5 {[%emt 0:00:40]} Rxg7 {[%emt 0:00:39]} 41. d6 {[%emt 0:00:10]} Rg5 {[%emt 0:00:31]} 42. Qc8 {[%emt 0:00:39]} Qg1 {[%emt 0:00:29]} 43. b3 {[%emt 0:00:38]} Qe3 {[%emt 0:00:34]} 44. Qc4+ {[%emt 0:00:30]} Kf3 {[%emt 0:00:30]} 45. Qf7+ {[%emt 0:00:37]} Kg2 {[%emt 0:00:31]} 46. Qf1+ {[%emt 0:00:31]} Kg3 {[%emt 0:00:26]} 47. Qg1+ {[%emt 0:00:12]} Kf4 {[%emt 0:00:26]} 48. Rf1+ {[%emt 0:00:29]} 1-0

[Event "O2C Doeberl Cup 2019"]
[Site "Canberra"]
[Date "2019.04.18"]
[Round "2.6"]
[White "Johansen, Darryl K"]
[Black "Maguire, Tom"]
[Result "1-0"]
[ECO "A35"]
[WhiteElo "2364"]
[BlackElo "2125"]
[Annotator "NA"]
[PlyCount "81"]
[EventDate "2019.04.17"]
[EventType "swiss"]
[EventCountry "AUS"]
[SourceTitle "playchess.com"]
[Source "ChessBase"]
[SourceQuality "1"]
[TimeControl "5400+30"]

1. c4 {[%emt 0:00:00]} c5 {[%emt 0:00:00]} 2. Nf3 {[%emt 0:00:10]} Nf6 {[%emt 0:00:00]} 3. Nc3 {[%emt 0:00:11]} Nc6 {[%emt 0:00:00]} 4. e3 {[%emt 0:01:03]} g6 {[%emt 0:01:46]} 5. d4 {[%emt 0:00:08]} cxd4 {[%emt 0:00:24]} 6. exd4 {[%emt 0:00:13]} d5 {[%emt 0:00:16]} 7. cxd5 {[%emt 0:00:31]} Nxd5 {[%emt 0:00:11]} 8. Qb3 {[%emt 0:02:20]} Nxc3 {[%emt 0:02:23]} 9. Bc4 {[%emt 0:01:41]} e6 {[%emt 0:00:06]} 10. bxc3 {[%emt 0:00:05]} Bg7 {[%emt 0:02:46]} 11. Ba3 {[%emt 0:00:47]} Bf8 {[%emt 0:00:54]} 12. Bb5 {[%emt 0:04:56]} Bd7 {[%emt 0:02:13]} 13. Bxf8 {[%emt 0:11:36]} Kxf8 {[%emt 0:00:25]} 14. O-O {[%emt 0:00:10]} Kg7 {[%emt 0:01:24]} 15. Bd3 {[%emt 0:06:52]} Na5 {[%emt 0:04:24]} 16. Qb4 {[%emt 0:01:01]} Bc6 {[%emt 0:03:09]} 17. Ne5 {[%emt 0:00:53]} Rc8 {[%emt 0:00:44]} 18. Rfd1 {[%emt 0:06:35]} b6 {[%emt 0:06:19]} 19. Bf1 {[%emt 0:09:04]} Bb7 {[%emt 0:10:21]} 20. c4 {[%emt 0:03:37]} Nc6 {[%emt 0:09:00]} 21. Qb2 {[%emt 0:09:29]} Nxe5 {[%emt 0:03:14]} 22. dxe5 {[%emt 0:00:06]} Qe7 {[%emt 0:00:21]} 23. Rd6 {[%emt 0:00:11]} Rc7 {[%emt 0:00:43]} 24. a4 {[%emt 0:02:55]} Qg5 {[%emt 0:10:14]} 25. a5 {[%emt 0:00:44]} Rxc4 {[%emt 0:01:44]} 26. axb6 {[%emt 0:03:18]} axb6 {[%emt 0:02:03]} 27. g3 {[%emt 0:16:06]} Rhc8 {[%emt 0:10:48]} 28. Bxc4 {[%emt 0:02:44]} Rxc4 {[%emt 0:00:07]} 29. Rxb6 {[%emt 0:02:05]} Be4 {[%emt 0:06:23]} 30. Rb4 {[%emt 0:07:38]} Rc2 {[%emt 0:02:06]} 31. Qa3 {[%emt 0:00:14]} Qd2 {[%emt 0:02:06]} 32. Rf1 {[%emt 0:00:34]} Bc6 {[%emt 0:10:00]} 33. Rb8 {[%emt 0:01:41]} Kh6 {[%emt 0:02:56]} 34. Qf8+ {[%emt 0:00:14]} Kh5 {[%emt 0:01:19]} 35. Qxf7 {[%emt 0:01:09]} h6 {[%emt 0:00:41]} 36. Qf6 {[%emt 0:01:16]} Qd4 {[%emt 0:04:54]} 37. h3 {[%emt 0:01:46]} Rc4 {[%emt 0:01:18]} 38. g4+ {[%emt 0:01:20]} Qxg4+ {[%emt 0:00:06]} 39. hxg4+ {[%emt 0:00:04]} Rxg4+ {[%emt 0:00:10]} 40. Kh2 {[%emt 0:00:04]} g5 {[%emt 0:00:48]} 41. f3 {[%emt 0:01:37]} 1-0

[Event "O2C Doeberl Cup 2019"]
[Site "Canberra"]
[Date "2019.04.18"]
[Round "2.7"]
[White "Hu, Jason"]
[Black "Padmini, Rout"]
[Result "0-1"]
[ECO "E04"]
[WhiteElo "2132"]
[BlackElo "2364"]
[Annotator "NA"]
[PlyCount "72"]
[EventDate "2019.04.17"]
[EventType "swiss"]
[EventCountry "AUS"]
[SourceTitle "playchess.com"]
[Source "ChessBase"]
[SourceQuality "1"]
[TimeControl "5400+30"]

1. d4 {[%emt 0:00:00]} e6 {[%emt 0:00:00]} 2. Nf3 {[%emt 0:00:27]} c5 {[%emt 0:00:38]} 3. g3 {[%emt 0:00:28]} Nf6 {[%emt 0:00:22]} 4. Bg2 {[%emt 0:00:13]} d5 {[%emt 0:02:22]} 5. O-O {[%emt 0:00:14]} Nbd7 {[%emt 0:00:37]} 6. c4 {[%emt 0:00:35]} dxc4 {[%emt 0:01:14]} 7. Na3 {[%emt 0:04:20]} Be7 {[%emt 0:04:27]} 8. dxc5 {[%emt 0:04:10]} Bxc5 {[%emt 0:06:54]} 9. Nxc4 {[%emt 0:00:55]} O-O {[%emt 0:00:08]} 10. Be3 {[%emt 0:26:45]} Bxe3 {[%emt 0:10:05]} 11. Nxe3 {[%emt 0:00:28]} Qe7 {[%emt 0:00:17]} 12. Rc1 {[%emt 0:01:27]} g6 {[%emt 0:10:33]} 13. Qd4 {[%emt 0:05:56]} e5 {[%emt 0:21:24]} 14. Nd5 {[%emt 0:02:35]} Nxd5 {[%emt 0:03:40]} 15. Qxd5 {[%emt 0:00:07]} e4 {[%emt 0:00:14]} 16. Ng5 {[%emt 0:06:25]} Nf6 {[%emt 0:01:27]} 17. Qc5 {[%emt 0:03:08]} Re8 {[%emt 0:00:17]} 18. Rfd1 {[%emt 0:12:28]} Bf5 {[%emt 0:01:52]} 19. Qxe7 {[%emt 0:03:28]} Rxe7 {[%emt 0:00:03]} 20. Bh3 {[%emt 0:02:17]} h6 {[%emt 0:06:06]} 21. Bxf5 {[%emt 0:00:23]} hxg5 {[%emt 0:00:10]} 22. Bh3 {[%emt 0:00:16]} Kg7 {[%emt 0:01:55]} 23. e3 {[%emt 0:00:29]} g4 {[%emt 0:02:40]} 24. Bg2 {[%emt 0:00:52]} Nh7 {[%emt 0:00:53]} 25. Rd5 {[%emt 0:02:04]} Ng5 {[%emt 0:07:26]} 26. Rxg5 {[%emt 0:00:11]} f5 {[%emt 0:00:06]} 27. Rc4 {[%emt 0:18:39]} Rae8 {[%emt 0:02:07]} 28. Bf1 {[%emt 0:03:14]} Kf6 {[%emt 0:01:00]} 29. Rxg4 {[%emt 0:00:53]} fxg4 {[%emt 0:00:07]} 30. Be2 {[%emt 0:00:03]} Kg5 {[%emt 0:01:32]} 31. Bd1 {[%emt 0:00:06]} Rd8 {[%emt 0:03:34]} 32. Rc5+ {[%emt 0:00:35]} Kh6 {[%emt 0:00:39]} 33. Bxg4 {[%emt 0:00:45]} Rd2 {[%emt 0:00:09]} 34. Rb5 {[%emt 0:01:16]} Rf7 {[%emt 0:01:21]} 35. f4 {[%emt 0:00:35]} exf3 {[%emt 0:01:57]} 36. e4 {[%emt 0:00:02]} Rc7 {[%emt 0:00:22]} 0-1

[Event "O2C Doeberl Cup 2019"]
[Site "Canberra"]
[Date "2019.04.18"]
[Round "2.8"]
[White "Tao, Trevor"]
[Black "Yang, Ray"]
[Result "1-0"]
[ECO "D00"]
[WhiteElo "2364"]
[BlackElo "2112"]
[Annotator "NA"]
[PlyCount "65"]
[EventDate "2019.04.17"]
[EventType "swiss"]
[EventCountry "AUS"]
[SourceTitle "playchess.com"]
[Source "ChessBase"]
[SourceQuality "1"]
[TimeControl "5400+30"]

1. d4 {[%emt 0:00:00]} d5 {[%emt 0:00:27]} 2. Bf4 {[%emt 0:00:00]} c5 {[%emt 0:00:12]} 3. e3 {[%emt 0:00:00]} Nf6 {[%emt 0:01:08]} 4. c3 {[%emt 0:02:10]} Bf5 {[%emt 0:00:29]} 5. dxc5 {[%emt 0:01:23]} Nc6 {[%emt 0:04:32]} 6. Nf3 {[%emt 0:00:20]} e6 {[%emt 0:00:51]} 7. b4 {[%emt 0:00:12]} a5 {[%emt 0:00:27]} 8. Bb5 {[%emt 0:00:40]} axb4 {[%emt 0:00:17]} 9. cxb4 {[%emt 0:00:13]} Nd7 {[%emt 0:01:21]} 10. Qb3 {[%emt 0:04:57]} Be7 {[%emt 0:05:30]} 11. O-O {[%emt 0:01:25]} Bf6 {[%emt 0:00:26]} 12. Nc3 {[%emt 0:00:49]} O-O {[%emt 0:02:15]} 13. Bd6 {[%emt 0:02:47]} Re8 {[%emt 0:00:23]} 14. a4 {[%emt 0:04:03]} Na7 {[%emt 0:02:25]} 15. Bxd7 {[%emt 0:04:39]} Qxd7 {[%emt 0:00:13]} 16. Be5 {[%emt 0:03:09]} Be7 {[%emt 0:03:15]} 17. Bg3 {[%emt 0:03:29]} Bf6 {[%emt 0:03:19]} 18. Nd4 {[%emt 0:00:43]} Bd3 {[%emt 0:00:26]} 19. Rfd1 {[%emt 0:00:43]} Bc4 {[%emt 0:00:09]} 20. Qc2 {[%emt 0:00:22]} Nc6 {[%emt 0:00:40]} 21. Rab1 {[%emt 0:01:34]} Qc8 {[%emt 0:05:39]} 22. Ncb5 {[%emt 0:04:19]} Nxd4 {[%emt 0:00:50]} 23. exd4 {[%emt 0:00:12]} Bxb5 {[%emt 0:01:11]} 24. axb5 {[%emt 0:00:05]} b6 {[%emt 0:00:27]} 25. h3 {[%emt 0:03:55]} Qd7 {[%emt 0:01:01]} 26. cxb6 {[%emt 0:02:43]} Qxb5 {[%emt 0:01:16]} 27. Qc5 {[%emt 0:00:10]} Qd7 {[%emt 0:03:08]} 28. b5 {[%emt 0:03:38]} Rac8 {[%emt 0:05:56]} 29. Bc7 {[%emt 0:00:06]} Bd8 {[%emt 0:01:06]} 30. Rdc1 {[%emt 0:00:30]} Re7 {[%emt 0:01:37]} 31. b7 {[%emt 0:00:16]} Rxc7 {[%emt 0:00:10]} 32. b8=Q {[%emt 0:00:06]} Rxc5 {[%emt 0:00:14]} 33. dxc5 {[%emt 0:00:04]} 1-0

[Event "O2C Doeberl Cup 2019"]
[Site "Canberra"]
[Date "2019.04.19"]
[Round "3.1"]
[White "Tao, Trevor"]
[Black "Smirnov, Anton"]
[Result "1/2-1/2"]
[ECO "A28"]
[WhiteElo "2364"]
[BlackElo "2567"]
[Annotator "RC"]
[PlyCount "74"]
[EventDate "2019.04.17"]
[EventType "swiss"]
[EventCountry "AUS"]
[SourceTitle "playchess.com"]
[Source "ChessBase"]
[SourceQuality "1"]
[TimeControl "5400+30"]

1. c4 {[%emt 0:00:00]} e5 {[%emt 0:00:00]} 2. Nc3 {[%emt 0:00:00]} Nf6 {[%emt 0:00:00]} 3. Nf3 {[%emt 0:00:00]} Nc6 {[%emt 0:00:00]} 4. e4 {[%emt 0:00:00]} Bb4 {[%emt 0:17:50]} 5. d3 {[%emt 0:00:00]} d6 {[%emt 0:01:44]} 6. Be2 {[%emt 0:00:00]} h6 {[%emt 0:04:29]} 7. O-O {[%emt 0:01:38]} Bxc3 {[%emt 0:01:39]} 8. bxc3 {[%emt 0:00:04]} O-O {[%emt 0:00:06]} 9. Ne1 {[%emt 0:13:56]} Nh7 {[%emt 0:07:49]} 10. Nc2 {[%emt 0:02:47]} Ne7 {[%emt 0:06:07]} 11. f4 {[%emt 0:07:52]} exf4 {[%emt 0:05:53]} 12. Bxf4 {[%emt 0:01:06]} f5 {[%emt 0:00:11]} 13. exf5 {[%emt 0:01:01]} Nxf5 {[%emt 0:00:18]} 14. Rb1 {[%emt 0:04:27]} Rb8 {[%emt 0:03:11]} 15. Bf3 {[%emt 0:01:40]} Nf6 {[%emt 0:05:10]} 16. Nb4 {[%emt 0:04:58]} Bd7 {[%emt 0:01:20]} 17. Nd5 {[%emt 0:09:23]} Bc6 {[%emt 0:07:21]} 18. Qe1 {[%emt 0:00:49]} Nxd5 {[%emt 0:01:36]} 19. cxd5 {[%emt 0:00:11]} Bd7 {[%emt 0:00:08]} 20. Rb4 {[%emt 0:03:08]} Qf6 {[%emt 0:09:31]} 21. Be4 {[%emt 0:04:24]} Ne7 {[%emt 0:01:42]} 22. Rf2 {[%emt 0:06:44]} Bf5 {[%emt 0:02:54]} 23. Be3 {[%emt 0:03:22]} b6 {[%emt 0:02:50]} 24. Bxf5 {[%emt 0:07:39]} Nxf5 {[%emt 0:00:07]} 25. Re4 {[%emt 0:00:05]} Qg6 {[%emt 0:00:40]} 26. Bd2 {[%emt 0:00:39]} Rf6 {[%emt 0:02:23]} 27. c4 {[%emt 0:02:03]} Rbf8 {[%emt 0:00:51]} 28. Bc3 {[%emt 0:00:22]} R6f7 {[%emt 0:00:08]} 29. Ref4 {[%emt 0:00:51]} Ne7 {[%emt 0:02:04]} 30. Rxf7 {[%emt 0:00:56]} Rxf7 {[%emt 0:00:01]} 31. Qe6 {[%emt 0:03:36]} Kf8 {[%emt 0:05:17]} 32. Qxg6 {[%emt 0:03:49]} Nxg6 {[%emt 0:02:12]} 33. g3 {[%emt 0:00:04]} Rxf2 {[%emt 0:02:15]} 34. Kxf2 {[%emt 0:00:04]} Kf7 {[%emt 0:00:58]} 35. Ke3 {[%emt 0:00:24]} Nf8 {[%emt 0:01:33]} 36. Kf4 {[%emt 0:01:16]} Nd7 {[%emt 0:00:06]} 37. Bd4 {[%emt 0:00:08]} Nf8 {[%emt 0:01:15]} 1/2-1/2

[Event "O2C Doeberl Cup 2019"]
[Site "Canberra"]
[Date "2019.04.19"]
[Round "3.2"]
[White "McClymont, Brodie"]
[Black "Johansen, Darryl K"]
[Result "0-1"]
[ECO "B56"]
[WhiteElo "2360"]
[BlackElo "2364"]
[Annotator "ChessBase"]
[PlyCount "42"]
[EventDate "2019.04.17"]
[EventType "swiss"]
[EventCountry "AUS"]
[SourceTitle "playchess.com"]
[Source "ChessBase"]
[SourceQuality "1"]
[TimeControl "5400+30"]

1. e4 {[%emt 0:00:00]} c5 {[%emt 0:00:01]} 2. Nf3 {[%emt 0:00:00]} d6 {[%emt 0:01:08]} 3. d4 {[%emt 0:00:04]} cxd4 {[%emt 0:00:06]} 4. Nxd4 {[%emt 0:00:04]} Nf6 {[%emt 0:00:12]} 5. Nc3 {[%emt 0:00:04]} Bd7 {[%emt 0:00:09]} 6. Bg5 {[%emt 0:01:02]} e6 {[%emt 0:00:34]} 7. Ndb5 {[%emt 0:09:05]} Bc6 {[%emt 0:00:35]} 8. Bxf6 {[%emt 0:01:59]} gxf6 {[%emt 0:00:06]} 9. Qh5 {[%emt 0:00:55]} a6 {[%emt 0:00:35]} 10. Nd4 {[%emt 0:01:45]} Qb6 {[%emt 0:01:32]} 11. Nxe6 {[%emt 0:14:40]} Qxb2 {[%emt 0:02:39]} 12. Kd2 {[%emt 0:00:05]} Qxa1 {[%emt 0:05:34]} 13. Nc7+ {[%emt 0:00:42]} Kd8 {[%emt 0:01:01]} 14. Nxa8 {[%emt 0:02:49]} Nd7 {[%emt 0:03:31]} 15. Qa5+ {[%emt 0:00:43]} Ke7 {[%emt 0:00:43]} 16. Nc7 {[%emt 0:09:04]} Bh6+ {[%emt 0:00:32]} 17. Ke2 {[%emt 0:00:05]} Rc8 {[%emt 0:07:48]} 18. N3d5+ {[%emt 0:05:58]} Bxd5 {[%emt 0:01:17]} 19. Nxd5+ {[%emt 0:00:54]} Kf8 {[%emt 0:04:26]} 20. Kf3 {[%emt 0:04:56]} f5 {[%emt 0:06:52]} 21. exf5 {[%emt 0:08:25]} Qe5 {[%emt 0:01:51]} 0-1

[Event "O2C Doeberl Cup 2019"]
[Site "Canberra"]
[Date "2019.04.19"]
[Round "3.3"]
[White "Padmini, Rout"]
[Black "Xie, George Wendi"]
[Result "1-0"]
[ECO "A05"]
[WhiteElo "2364"]
[BlackElo "2359"]
[Annotator "ChessBase"]
[PlyCount "57"]
[EventDate "2019.04.17"]
[EventType "swiss"]
[EventCountry "AUS"]
[SourceTitle "playchess.com"]
[Source "ChessBase"]
[SourceQuality "1"]
[TimeControl "5400+30"]

1. Nf3 {[%emt 0:00:00]} Nf6 {[%emt 0:00:07]} 2. g3 {[%emt 0:00:00]} c5 {[%emt 0:03:21]} 3. Bg2 {[%emt 0:00:12]} b6 {[%emt 0:00:03]} 4. Ne5 {[%emt 0:03:52]} d5 {[%emt 0:00:11]} 5. c4 {[%emt 0:00:36]} Qd6 {[%emt 0:18:16]} 6. d4 {[%emt 0:13:02]} cxd4 {[%emt 0:00:07]} 7. Qxd4 {[%emt 0:00:46]} Nbd7 {[%emt 0:00:23]} 8. Nxd7 {[%emt 0:02:13]} Bxd7 {[%emt 0:00:03]} 9. cxd5 {[%emt 0:01:58]} e5 {[%emt 0:00:05]} 10. Qd3 {[%emt 0:00:52]} Qb4+ {[%emt 0:10:43]} 11. Nc3 {[%emt 0:00:23]} Bc5 {[%emt 0:00:03]} 12. O-O {[%emt 0:00:21]} O-O {[%emt 0:00:04]} 13. a3 {[%emt 0:06:48]} Qd4 {[%emt 0:00:07]} 14. Qc2 {[%emt 0:01:04]} Qc4 {[%emt 0:02:30]} 15. Bg5 {[%emt 0:10:10]} Rac8 {[%emt 0:01:03]} 16. Bxf6 {[%emt 0:01:16]} gxf6 {[%emt 0:00:01]} 17. Be4 {[%emt 0:01:13]} Bd4 {[%emt 0:22:07]} 18. Rac1 {[%emt 0:12:18]} Bxc3 {[%emt 0:07:25]} 19. bxc3 {[%emt 0:00:08]} Kg7 {[%emt 0:00:17]} 20. Rfd1 {[%emt 0:05:39]} Ba4 {[%emt 0:00:06]} 21. Qb1 {[%emt 0:01:41]} Bxd1 {[%emt 0:00:20]} 22. Rxd1 {[%emt 0:00:06]} Qxe2 {[%emt 0:08:24]} 23. Bd3 {[%emt 0:00:06]} Qf3 {[%emt 0:01:26]} 24. c4 {[%emt 0:00:05]} f5 {[%emt 0:02:49]} 25. d6 {[%emt 0:03:50]} e4 {[%emt 0:01:38]} 26. Qb2+ {[%emt 0:00:11]} Kg6 {[%emt 0:05:56]} 27. Be2 {[%emt 0:00:14]} Rxc4 {[%emt 0:00:29]} 28. Bxf3 {[%emt 0:00:11]} exf3 {[%emt 0:00:03]} 29. Qb3 {[%emt 0:00:10]} 1-0

[Event "O2C Doeberl Cup 2019"]
[Site "Canberra"]
[Date "2019.04.19"]
[Round "3.6"]
[White "Song, Raymond"]
[Black "Kunte, Abhijit"]
[Result "1-0"]
[ECO "B41"]
[WhiteElo "2329"]
[BlackElo "2485"]
[Annotator "ChessBase"]
[PlyCount "91"]
[EventDate "2019.04.17"]
[EventType "swiss"]
[EventCountry "AUS"]
[SourceTitle "playchess.com"]
[Source "ChessBase"]
[SourceQuality "1"]
[TimeControl "5400+30"]

1. e4 {[%emt 0:00:00]} c5 {[%emt 0:00:11]} 2. Nf3 {[%emt 0:00:00]} e6 {[%emt 0:00:00]} 3. d4 {[%emt 0:00:00]} cxd4 {[%emt 0:00:00]} 4. Nxd4 {[%emt 0:00:00]} a6 {[%emt 0:00:10]} 5. c4 {[%emt 0:00:00]} Nf6 {[%emt 0:00:04]} 6. Nc3 {[%emt 0:00:00]} Qc7 {[%emt 0:00:08]} 7. a3 {[%emt 0:00:13]} b6 {[%emt 0:01:06]} 8. Be3 {[%emt 0:00:06]} Bb7 {[%emt 0:00:26]} 9. f3 {[%emt 0:00:05]} Be7 {[%emt 0:00:33]} 10. Rc1 {[%emt 0:00:46]} O-O {[%emt 0:01:12]} 11. Be2 {[%emt 0:00:07]} d6 {[%emt 0:01:56]} 12. O-O {[%emt 0:00:05]} Nbd7 {[%emt 0:00:08]} 13. b4 {[%emt 0:00:07]} Rac8 {[%emt 0:03:20]} 14. Qd2 {[%emt 0:00:08]} Qb8 {[%emt 0:01:12]} 15. Kh1 {[%emt 0:00:05]} Rfe8 {[%emt 0:01:43]} 16. Rc2 {[%emt 0:00:05]} h5 {[%emt 0:02:34]} 17. Bf2 {[%emt 0:00:05]} Ne5 {[%emt 0:08:03]} 18. Na4 {[%emt 0:01:08]} Nfd7 {[%emt 0:01:20]} 19. Rfc1 {[%emt 0:05:03]} h4 {[%emt 0:01:58]} 20. h3 {[%emt 0:00:26]} Ng6 {[%emt 0:03:28]} 21. Nb3 {[%emt 0:02:28]} Bc6 {[%emt 0:00:46]} 22. b5 {[%emt 0:01:22]} Ba8 {[%emt 0:05:47]} 23. bxa6 {[%emt 0:05:44]} Qa7 {[%emt 0:03:38]} 24. Rb2 {[%emt 0:25:20]} Nge5 {[%emt 0:30:04]} 25. Na5 {[%emt 0:05:34]} Rb8 {[%emt 0:07:11]} 26. Rcb1 {[%emt 0:05:12]} Nc5 {[%emt 0:07:09]} 27. Nxb6 {[%emt 0:00:12]} Qxa6 {[%emt 0:00:06]} 28. Nd5 {[%emt 0:02:29]} Bg5 {[%emt 0:09:50]} 29. Qxg5 {[%emt 0:02:49]} Rxb2 {[%emt 0:00:10]} 30. Nf6+ {[%emt 0:03:13]} Kf8 {[%emt 0:00:05]} 31. Rxb2 {[%emt 0:07:11]} gxf6 {[%emt 0:00:30]} 32. Qd2 {[%emt 0:00:04]} Ng6 {[%emt 0:03:33]} 33. Rb5 {[%emt 0:01:41]} Kg7 {[%emt 0:05:25]} 34. Bf1 {[%emt 0:02:43]} e5 {[%emt 0:00:00]} 35. Qb4 {[%emt 0:03:04]} Qc8 {[%emt 0:01:34]} 36. Nb3 {[%emt 0:02:48]} Bc6 {[%emt 0:00:09]} 37. Ra5 {[%emt 0:00:55]} f5 {[%emt 0:01:03]} 38. exf5 {[%emt 0:06:46]} Qxf5 {[%emt 0:00:13]} 39. Nxc5 {[%emt 0:02:55]} dxc5 {[%emt 0:00:03]} 40. Rxc5 {[%emt 0:00:17]} Bxf3 {[%emt 0:01:04]} 41. Kg1 {[%emt 0:04:35]} Be4 {[%emt 0:01:37]} 42. Qe1 {[%emt 0:01:09]} Re6 {[%emt 0:00:22]} 43. Bxh4 {[%emt 0:01:40]} Nf4 {[%emt 0:00:09]} 44. Kh2 {[%emt 0:01:34]} Nxh3 {[%emt 0:01:21]} 45. gxh3 {[%emt 0:01:54]} Rg6 {[%emt 0:00:30]} 46. Qd1 {[%emt 0:01:15]} 1-0